fUSD/lending_fUSD_20240628
["ID","MTS","AMOUNT","RATE_DAILY","PERIOD"]
[330538731,1719561083053,-500.0,0.00019726,2]
[330538732,1719561083062,-500.0,0.00019726,2]
[330538733,1719561083072,-6250.57,0.00019726,2]
[330538734,1719561083081,-500.0,0.00019726,2]
[330538735,1719561083091,-500.0,0.00019726,2]
[330538736,1719561083100,-2667.99,0.00019726,2]
[330538737,1719561083109,-4756.33,0.00019726,2]
[330538738,1719561083120,-1063.1,0.00019726,2]
[330538739,1719561083130,-823.18,0.00019726,2]
[330538740,1719561083139,-1293.08,0.00019726,2]
[330538741,1719561083148,-500.0,0.00019726,2]
[330538742,1719561083157,-5103.03,0.00019726,2]
[330538743,1719561083166,-721.31,0.00019726,2]
[330538744,1719561083177,-500.0,0.00019726,2]
[330538745,1719561083187,-500.0,0.00019726,2]
[330538746,1719561083196,-1439.83,0.00019726,2]
[330538747,1719561083205,-770.64,0.00019726,2]
[330538748,1719561083214,-2458.51,0.00019726,2]
[330538749,1719561083223,-500.0,0.00019726,2]
[330538750,1719561083233,-500.0,0.00019726,2]
[330538751,1719561083243,-500.0,0.00019726,2]
[330538752,1719561083252,-1211.11,0.00019726,2]
[330538753,1719561083261,-500.0,0.00019726,2]
[330538754,1719561083270,-552.09,0.00019726,2]
[330538755,1719561083279,-3750.61,0.00019726,2]
[330538756,1719561083288,-500.0,0.00019726,2]
[330538757,1719561083297,-500.0,0.00019726,2]
[330538758,1719561083306,-2098.22,0.00019726,2]
[330538759,1719561083315,-500.0,0.00019726,2]
[330538760,1719561083324,-500.0,0.00019726,2]
[330538761,1719561083333,-754.56,0.00019726,2]
[330538762,1719561083342,-4491.42,0.00019726,2]
[330538763,1719561083353,-500.93823732,0.00019726,2]
[330538764,1719561083364,-2020.73,0.00019726,2]
[330538765,1719561083374,-500.0,0.00019726,2]
[330538766,1719561083385,-500.0,0.00019726,2]
[330538767,1719561083394,-500.0,0.00019726,2]
[330538768,1719561083403,-2438.38,0.00019726,2]
[330538769,1719561083412,-1992.71,0.00019726,2]
[330538770,1719561083422,-781.62,0.00019726,2]
[330538771,1719561083431,-1432.47,0.00019726,2]
[330538772,1719561083440,-500.0,0.00019726,2]
[330538773,1719561083449,-1548.3,0.00019726,2]
[330538774,1719561083459,-500.0,0.00019726,2]
[330538775,1719561083468,-500.0,0.00019726,2]
[330538776,1719561083477,-500.0,0.00019726,2]
[330538777,1719561083487,-885.59,0.00019726,2]
[330538778,1719561083496,-5534.77,0.00019726,2]
[330538779,1719561083506,-500.0,0.00019726,2]
[330538780,1719561083515,-4164.92,0.00019726,2]
[330538781,1719561083525,-1994.67,0.00019726,2]
[330538782,1719561083534,-1403.1,0.00019726,2]
[330538783,1719561083543,-500.0,0.00019726,2]
[330538784,1719561083553,-814.93,0.00019726,2]
[330538785,1719561083563,-526.81,0.00019726,2]
[330538786,1719561083572,-2686.24,0.00019726,2]
[330538787,1719561083582,-437.75378239,0.00019726,2]
[330538788,1719561083591,-3931.36,0.00019726,2]
[330538789,1719561083600,-500.0,0.00019726,2]
[330538790,1719561083610,-1627.14,0.00019726,2]
[330538791,1719561083620,-500.0,0.00019726,2]
[330538792,1719561083631,-500.0,0.00019726,2]
[330538793,1719561083641,-500.0,0.00019726,2]
[330538794,1719561083651,-1739.9,0.00019726,2]
[330538795,1719561083661,-1201.25,0.00019726,2]
[330538796,1719561083671,-823.37,0.00019726,2]
[330538797,1719561083680,-500.0,0.00019726,2]
[330538798,1719561083690,-500.0,0.00019726,2]
[330538799,1719561083699,-1677.95,0.00019726,2]
[330538800,1719561083709,-500.0,0.00019726,2]
[330538801,1719561083720,-500.0,0.00019726,2]
[330538802,1719561083730,-500.0,0.00019726,2]
[330538803,1719561083742,-2423.48,0.00019726,2]
[330538804,1719561083751,-4579.29,0.00019726,2]
[330538805,1719561083765,-500.0,0.00019726,2]
[330538806,1719561083775,-564.34,0.00019726,2]
[330538807,1719561083784,-4356.08,0.00019726,2]
[330538808,1719561083794,-500.0,0.00019726,2]
[330538809,1719561083803,-500.0,0.00019726,2]
[330538810,1719561083812,-500.0,0.00019726,2]
[330538811,1719561083822,-3220.4,0.00019726,2]
[330538812,1719561083832,-500.0,0.00019726,2]
[330538813,1719561083845,-10448.28,0.00019726,2]
[330538814,1719561083855,-500.0,0.00019726,2]
[330538815,1719561083865,-500.0,0.00019726,2]
[330538816,1719561083875,-2461.19,0.00019726,2]
[330538817,1719561083884,-500.0,0.00019726,2]
[330538818,1719561083894,-575.39,0.00019726,2]
[330538819,1719561083904,-4745.96,0.00019726,2]
[330538820,1719561083915,-848.23,0.00019726,2]
[330538821,1719561083927,-571.54,0.00019726,2]
[330538822,1719561083938,-500.0,0.00019726,2]
[330538823,1719561083947,-500.0,0.00019726,2]
[330538824,1719561084142,-1688.67,0.00019726,2]
[330538825,1719561084153,-500.0,0.00019726,2]
[330538826,1719561084163,-662.7,0.00019726,2]
[330538827,1719561084172,-500.0,0.00019726,2]
[330538828,1719561084182,-1372.06,0.00019726,2]
[330538829,1719561084191,-504.88,0.00019726,2]
[330538830,1719561084201,-500.0,0.00019726,2]
[330538831,1719561084211,-1056.34,0.00019726,2]
[330538832,1719561084221,-1074.08,0.00019726,2]
[330538833,1719561084231,-606.3,0.00019726,2]
[330538834,1719561084242,-500.0,0.00019726,2]
[330538835,1719561084252,-500.0,0.00019726,2]
[330538836,1719561084262,-2441.39,0.00019726,2]
[330538837,1719561084272,-500.0,0.00019726,2]
[330538838,1719561084282,-2465.9,0.00019726,2]
[330538839,1719561084292,-500.0,0.00019726,2]
[330538840,1719561084301,-1390.74,0.00019726,2]
[330538841,1719561084311,-1781.97,0.00019726,2]
[330538842,1719561084321,-500.0,0.00019726,2]
[330538843,1719561084331,-935.7,0.00019726,2]
[330538844,1719561084340,-308.286515,0.00019726,2]
[330538845,1719561084350,-323.29011308,0.00019726,2]
[330538846,1719561084360,-500.0,0.00019726,2]
[330538847,1719561084369,-3285.77,0.00019726,2]
[330538848,1719561084379,-525.03,0.00019726,2]
[330538849,1719561084389,-500.0,0.00019726,2]
[330538850,1719561084398,-668.57,0.00019726,2]
[330538851,1719561084407,-500.0,0.00019726,2]
[330538852,1719561084417,-227.14588433,0.00019726,2]
[330538853,1719561084426,-1463.5,0.00019726,2]
[330538854,1719561084436,-500.0,0.00019726,2]
[330538855,1719561084445,-1552.82,0.00019726,2]
[330538856,1719561084455,-1287.58,0.00019726,2]
[330538857,1719561084464,-500.0,0.00019726,2]
[330538858,1719561084474,-1253.08,0.00019726,2]
[330538859,1719561084483,-500.0,0.00019726,2]
[330538860,1719561084493,-500.0,0.00019726,2]
[330538861,1719561084503,-1221.61,0.00019726,2]
[330538862,1719561084512,-500.0,0.00019726,2]
[330538863,1719561084522,-500.0,0.00019726,2]
[330538864,1719561084532,-2098.47,0.00019726,2]
[330538865,1719561084541,-500.0,0.00019726,2]
[330538866,1719561084550,-861.59,0.00019726,2]
[330538867,1719561084559,-1171.21,0.00019726,2]
[330538868,1719561084569,-3809.85,0.00019726,2]
[330538869,1719561084579,-500.0,0.00019726,2]
[330538870,1719561084588,-500.0,0.00019726,2]
[330538871,1719561084598,-1526.48,0.00019726,2]
[330538872,1719561084608,-500.0,0.00019726,2]
[330538873,1719561084617,-1044.61,0.00019726,2]
[330538874,1719561084627,-2191.37,0.00019726,2]
[330538875,1719561084636,-265.25859863,0.00019726,2]
[330538876,1719561084646,-500.0,0.00019726,2]
[330538877,1719561084656,-500.0,0.00019726,2]
[330538878,1719561084666,-1251.54,0.00019726,2]
[330538879,1719561084675,-2330.29,0.00019726,2]
[330538880,1719561084684,-1197.85,0.00019726,2]
[330538881,1719561084694,-3118.59,0.00019726,2]
[330538882,1719561084703,-500.0,0.00019726,2]
[330538883,1719561084713,-532.97,0.00019726,2]
[330538884,1719561084723,-2052.11,0.00019726,2]
[330538885,1719561084733,-500.0,0.00019726,2]
[330538886,1719561084742,-500.0,0.00019726,2]
[330538887,1719561084752,-5026.87,0.00019726,2]
[330538888,1719561084761,-2335.36,0.00019726,2]
[330538889,1719561084770,-873.76,0.00019726,2]
[330538890,1719561084779,-3596.87,0.00019726,2]
[330538891,1719561084789,-1566.0,0.00019726,2]
[330538892,1719561084798,-1698.0,0.00019726,2]
[330538893,1719561084808,-1543.01,0.00019726,2]
[330538894,1719561084817,-500.0,0.00019726,2]
[330538895,1719561084827,-3389.93,0.00019726,2]
[330538896,1719561084837,-648.91,0.00019726,2]
[330538897,1719561084848,-978.5,0.00019726,2]
[330538898,1719561084858,-2869.58,0.00019726,2]
[330538899,1719561084868,-595.54,0.00019726,2]
[330538900,1719561084879,-762.46,0.00019726,2]
[330538901,1719561084888,-638.08,0.00019726,2]
[330538902,1719561084898,-526.25,0.00019726,2]
[330538903,1719561084907,-500.0,0.00019726,2]
[330538904,1719561084918,-780.19,0.00019726,2]
[330538905,1719561084928,-500.0,0.00019726,2]
[330538906,1719561084938,-855.45,0.00019726,2]
[330538907,1719561084947,-1000.0,0.00019726,2]
[330538908,1719561084957,-1166.4,0.00019726,2]
[330538909,1719561084967,-242.94221121,0.00019726,2]
[330538910,1719561084977,-779.68,0.00019726,2]
[330538911,1719561084987,-12184.84,0.00019726,2]
[330538912,1719561084997,-1703.63,0.00019726,2]
[330538913,1719561085007,-783.91,0.00019726,2]
[330538914,1719561085016,-4108.34,0.00019726,2]
[330538915,1719561085026,-655.17,0.00019726,2]
[330538916,1719561085037,-500.0,0.00019726,2]
[330538917,1719561085047,-577.58,0.00019726,2]
[330538918,1719561085058,-1434.26,0.00019726,2]
[330538919,1719561085068,-1494.47,0.00019726,2]
[330538920,1719561085078,-1812.77,0.00019726,2]
[330538921,1719561085087,-500.0,0.00019726,2]
[330538922,1719561085097,-500.0,0.00019726,2]
[330538923,1719561085106,-803.64,0.00019726,2]
[330538924,1719561085116,-8612.7,0.00019726,2]
[330538925,1719561085126,-500.0,0.00019726,2]
[330538926,1719561085135,-500.0,0.00019726,2]
[330538927,1719561085145,-2570.43,0.00019726,2]
[330538928,1719561085154,-2233.3,0.00019726,2]
[330538929,1719561085164,-564.9,0.00019726,2]
[330538930,1719561085173,-7571.09,0.00019726,2]
[330538931,1719561085182,-500.0,0.00019726,2]
[330538932,1719561085191,-833.81,0.00019726,2]
[330538933,1719561085201,-651.19,0.00019726,2]
[330538934,1719561085210,-990.66,0.00019726,2]
[330538935,1719561085220,-500.0,0.00019726,2]
[330538936,1719561085230,-1393.07,0.00019726,2]
[330538937,1719561085240,-500.0,0.00019726,2]
[330538938,1719561085250,-500.0,0.00019726,2]
[330538939,1719561085260,-795.17,0.00019726,2]
[330538940,1719561085269,-1571.82,0.00019726,2]
[330538941,1719561085279,-803.77,0.00019726,2]
[330538942,1719561085288,-2442.19,0.00019726,2]
[330538943,1719561085297,-500.0,0.00019726,2]
[330538944,1719561085307,-500.0,0.00019726,2]
[330538945,1719561085317,-500.0,0.00019726,2]
[330538946,1719561085326,-500.0,0.00019726,2]
[330538947,1719561085335,-1017.76,0.00019726,2]
[330538948,1719561085345,-500.0,0.00019726,2]
[330538949,1719561085355,-985.98,0.00019726,2]
[330538950,1719561085364,-3900.49,0.00019726,2]
[330538951,1719561085373,-623.56,0.00019726,2]
[330538952,1719561085383,-500.0,0.00019726,2]
[330538953,1719561085393,-3571.61,0.00019726,2]
[330538954,1719561085403,-510.44,0.00019726,2]
[330538955,1719561085412,-3626.35,0.00019726,2]
[330538956,1719561085422,-974.54,0.00019726,2]
[330538957,1719561085432,-673.35,0.00019726,2]
[330538958,1719561085442,-500.0,0.00019726,2]
[330538959,1719561085452,-500.0,0.00019726,2]
[330538960,1719561085462,-500.0,0.00019726,2]
[330538961,1719561085472,-914.91,0.00019726,2]
[330538962,1719561085482,-1975.34,0.00019726,2]
[330538963,1719561085492,-4977.96,0.00019726,2]
[330538964,1719561085501,-500.0,0.00019726,2]
[330538965,1719561085511,-668.22,0.00019726,2]
[330538966,1719561085522,-4103.33,0.00019726,2]
[330538967,1719561085531,-500.0,0.00019726,2]
[330538968,1719561085541,-929.98,0.00019726,2]
[330538969,1719561085551,-690.61,0.00019726,2]
[330538970,1719561085560,-2114.11,0.00019726,2]
[330538971,1719561085570,-500.0,0.00019726,2]
[330538972,1719561085579,-1628.46,0.00019726,2]
[330538973,1719561085589,-1444.66,0.00019726,2]
[330538974,1719561085599,-933.49,0.00019726,2]
[330538975,1719561085608,-2888.25,0.00019726,2]
[330538976,1719561085617,-500.0,0.00019726,2]
[330538977,1719561085627,-500.0,0.00019726,2]
[330538978,1719561085637,-1270.72,0.00019726,2]
[330538979,1719561085647,-3537.73,0.00019726,2]
[330538980,1719561085657,-1988.26,0.00019726,2]
[330538981,1719561085668,-500.0,0.00019726,2]
[330538982,1719561085677,-646.8,0.00019726,2]
[330538983,1719561085687,-500.0,0.00019726,2]
[330538984,1719561085696,-3537.83,0.00019726,2]
[330538985,1719561085706,-1016.96,0.00019726,2]
[330538986,1719561085715,-500.0,0.00019726,2]
[330538987,1719561085726,-4400.98,0.00019726,2]
[330538988,1719561085735,-500.0,0.00019726,2]
[330538989,1719561085745,-768.32,0.00019726,2]
[330538990,1719561085754,-6545.79,0.00019726,2]
[330538991,1719561085764,-588.73,0.00019726,2]
[330538992,1719561085774,-1070.33,0.00019726,2]
[330538993,1719561085783,-743.46,0.00019726,2]
[330538994,1719561085793,-892.56,0.00019726,2]
[330538995,1719561085802,-1231.54,0.00019726,2]
[330538996,1719561085812,-500.0,0.00019726,2]
[330538997,1719561085821,-895.8,0.00019726,2]
[330538998,1719561085831,-500.0,0.00019726,2]
[330538999,1719561085845,-500.0,0.00019726,2]
[330539000,1719561085854,-2097.83,0.00019726,2]
[330539001,1719561085864,-500.0,0.00019726,2]
[330539002,1719561085874,-500.0,0.00019726,2]
[330539003,1719561085883,-500.0,0.00019726,2]
[330539004,1719561085893,-3334.25,0.00019726,2]
[330539005,1719561085903,-500.0,0.00019726,2]
[330539006,1719561085912,-3150.03,0.00019726,2]
[330539007,1719561085925,-500.0,0.00019726,2]
[330539008,1719561085935,-500.0,0.00019726,2]
[330539009,1719561085944,-500.0,0.00019726,2]
[330539010,1719561085953,-610.61,0.00019726,2]
[330539011,1719561085963,-500.0,0.00019726,2]
[330539012,1719561085972,-500.0,0.00019726,2]
[330539013,1719561085982,-500.0,0.00019726,2]
[330539014,1719561085991,-1099.72,0.00019726,2]
[330539015,1719561086000,-500.0,0.00019726,2]
[330539016,1719561086010,-1552.28,0.00019726,2]
[330539017,1719561086019,-735.24,0.00019726,2]
[330539018,1719561086029,-500.0,0.00019726,2]
[330539019,1719561086039,-1827.69,0.00019726,2]
[330539020,1719561086049,-538.50024175,0.00019726,2]
[330539021,1719561086059,-2422.64,0.00019726,2]
[330539022,1719561086068,-3657.77,0.00019726,2]
[330539023,1719561086078,-500.0,0.00019726,2]
[330539024,1719561086087,-500.0,0.00019726,2]
[330539025,1719561086096,-2088.49,0.00019726,2]
[330539026,1719561086106,-14987.84,0.00019726,2]
[330539027,1719561086115,-500.0,0.00019726,2]
[330539028,1719561086124,-561.79,0.00019726,2]
[330539029,1719561086133,-890.94,0.00019726,2]
[330539030,1719561086143,-1894.39,0.00019726,2]
[330539031,1719561086152,-500.0,0.00019726,2]
[330539032,1719561086162,-1243.28,0.00019726,2]
[330539033,1719561086171,-500.0,0.00019726,2]
[330539034,1719561086179,-2029.23,0.00019726,2]
[330539035,1719561086189,-1128.27,0.00019726,2]
[330539036,1719561086198,-500.0,0.00019726,2]
[330539037,1719561086207,-2561.23,0.00019726,2]
[330539038,1719561086216,-604.19,0.00019726,2]
[330539039,1719561086226,-2467.25,0.00019726,2]
[330539040,1719561086235,-500.0,0.00019726,2]
[330539041,1719561086610,-1302.81,0.00019726,2]
[330539042,1719561086624,-500.0,0.00019726,2]
[330539043,1719561086634,-500.0,0.00019726,2]
[330539044,1719561086643,-580.74,0.00019726,2]
[330539045,1719561086653,-2378.96,0.00019726,2]
[330539046,1719561086662,-519.05,0.00019726,2]
[330539047,1719561086672,-696.42,0.00019726,2]
[330539048,1719561086682,-1077.61,0.00019726,2]
[330539049,1719561086691,-3444.9,0.00019726,2]
[330539050,1719561086701,-500.0,0.00019726,2]
[330539051,1719561086710,-878.91,0.00019726,2]
[330539052,1719561086720,-1810.22,0.00019726,2]
[330539053,1719561086730,-500.0,0.00019726,2]
[330539054,1719561086740,-5919.42,0.00019726,2]
[330539055,1719561086750,-931.76,0.00019726,2]
[330539056,1719561086760,-500.0,0.00019726,2]
[330539057,1719561086770,-153.16996444,0.00019726,2]
[330539058,1719561086779,-1072.86,0.00019726,2]
[330539059,1719561086789,-1058.14,0.00019726,2]
[330539060,1719561086798,-500.0,0.00019726,2]
[330539061,1719561086807,-1191.34,0.00019726,2]
[330539062,1719561086817,-500.0,0.00019726,2]
[330539063,1719561086827,-500.0,0.00019726,2]
[330539064,1719561086839,-12606.71,0.00019726,2]
[330539065,1719561086850,-3215.98,0.00019726,2]
[330539066,1719561086859,-1586.1,0.00019726,2]
[330539067,1719561086868,-500.0,0.00019726,2]
[330539068,1719561086878,-687.47,0.00019726,2]
[330539069,1719561086890,-500.0,0.00019726,2]
[330539070,1719561086900,-500.0,0.00019726,2]
[330539071,1719561086909,-1219.48,0.00019726,2]
[330539072,1719561086923,-500.0,0.00019726,2]
[330539073,1719561086932,-836.18,0.00019726,2]
[330539074,1719561086942,-625.82,0.00019726,2]
[330539075,1719561086952,-1319.12,0.00019726,2]
[330539076,1719561086962,-1059.97,0.00019726,2]
[330539077,1719561086972,-1041.16,0.00019726,2]
[330539078,1719561086981,-500.0,0.00019726,2]
[330539079,1719561086993,-500.0,0.00019726,2]
[330539080,1719561087002,-1776.67,0.00019726,2]
[330539081,1719561087014,-500.0,0.00019726,2]
[330539082,1719561087024,-500.0,0.00019726,2]
[330539083,1719561087034,-500.0,0.00019726,2]
[330539084,1719561087048,-833.16,0.00019726,2]
[330539085,1719561087057,-852.24,0.00019726,2]
[330539086,1719561087067,-500.0,0.00019726,2]
[330539087,1719561087076,-667.48,0.00019726,2]
[330539088,1719561087087,-832.89,0.00019726,2]
[330539089,1719561087096,-500.0,0.00019726,2]
[330539090,1719561087105,-500.0,0.00019726,2]
[330539091,1719561087115,-1285.7,0.00019726,2]
[330539092,1719561087124,-500.0,0.00019726,2]
[330539093,1719561087134,-500.0,0.00019726,2]
[330539094,1719561087143,-1976.95,0.00019726,2]
[330539095,1719561087153,-500.0,0.00019726,2]
[330539096,1719561087162,-1115.81,0.00019726,2]
[330539097,1719561087173,-620.27,0.00019726,2]
[330539098,1719561087184,-500.0,0.00019726,2]
[330539099,1719561087195,-1542.91,0.00019726,2]
[330539100,1719561087204,-500.0,0.00019726,2]
[330539101,1719561087214,-1980.39,0.00019726,2]
[330539102,1719561087223,-1594.11,0.00019726,2]
[330539103,1719561087232,-500.0,0.00019726,2]
[330539104,1719561087246,-500.0,0.00019726,2]
[330539105,1719561087255,-500.0,0.00019726,2]
[330539106,1719561087264,-500.0,0.00019726,2]
[330539107,1719561087274,-1240.01,0.00019726,2]
[330539108,1719561087283,-1834.65,0.00019726,2]
[330539109,1719561087292,-1531.63,0.00019726,2]
[330539110,1719561087304,-893.21,0.00019726,2]
[330539111,1719561087313,-532.59,0.00019726,2]
[330539112,1719561087324,-1176.17,0.00019726,2]
[330539113,1719561087333,-4339.37,0.00019726,2]
[330539114,1719561087344,-1096.31,0.00019726,2]
[330539115,1719561087353,-500.0,0.00019726,2]
[330539116,1719561087363,-500.0,0.00019726,2]
[330539117,1719561087373,-500.0,0.00019726,2]
[330539118,1719561087382,-791.78,0.00019726,2]
[330539119,1719561087393,-500.0,0.00019726,2]
[330539120,1719561087403,-1639.09,0.00019726,2]
[330539121,1719561087412,-500.0,0.00019726,2]
[330539122,1719561087421,-500.0,0.00019726,2]
[330539123,1719561087431,-500.0,0.00019726,2]
[330539124,1719561087440,-1124.86,0.00019726,2]
[330539125,1719561087449,-1291.49,0.00019726,2]
[330539126,1719561087459,-504.91,0.00019726,2]
[330539127,1719561087469,-588.38,0.00019726,2]
[330539128,1719561087479,-500.0,0.00019726,2]
[330539129,1719561087491,-1924.82,0.00019726,2]
[330539130,1719561087500,-500.0,0.00019726,2]
[330539131,1719561087509,-1061.55,0.00019726,2]
[330539132,1719561087518,-500.0,0.00019726,2]
[330539133,1719561087527,-500.0,0.00019726,2]
[330539134,1719561087537,-1465.35,0.00019726,2]
[330539135,1719561087546,-2089.57,0.00019726,2]
[330539136,1719561087555,-500.0,0.00019726,2]
[330539137,1719561087565,-500.0,0.00019726,2]
[330539138,1719561087575,-734.27,0.00019726,2]
[330539139,1719561087584,-500.0,0.00019726,2]
[330539140,1719561087594,-500.0,0.00019726,2]
[330539141,1719561087603,-500.0,0.00019726,2]
[330539142,1719561087613,-948.23,0.00019726,2]
[330539143,1719561087622,-3576.87,0.00019726,2]
[330539144,1719561087631,-500.0,0.00019726,2]
[330539145,1719561087641,-3935.43,0.00019726,2]
[330539146,1719561087651,-500.0,0.00019726,2]
[330539147,1719561087661,-3780.4,0.00019726,2]
[330539148,1719561087670,-500.0,0.00019726,2]
[330539149,1719561087680,-500.0,0.00019726,2]
[330539150,1719561087691,-500.0,0.00019726,2]
[330539151,1719561087700,-500.0,0.00019726,2]
[330539152,1719561087710,-946.83,0.00019726,2]
[330539153,1719561087719,-770.26,0.00019726,2]
[330539154,1719561087729,-500.0,0.00019726,2]
[330539155,1719561087739,-500.0,0.00019726,2]
[330539156,1719561087749,-4503.97,0.00019726,2]
[330539157,1719561087759,-500.0,0.00019726,2]
[330539158,1719561087768,-950.23,0.00019726,2]
[330539159,1719561087777,-500.0,0.00019726,2]
[330539160,1719561087786,-1446.14,0.00019726,2]
[330539161,1719561087796,-500.0,0.00019726,2]
[330539162,1719561087805,-2365.29,0.00019726,2]
[330539163,1719561087815,-1659.75,0.00019726,2]
[330539164,1719561087823,-500.0,0.00019726,2]
[330539165,1719561087833,-500.0,0.00019726,2]
[330539166,1719561087847,-500.0,0.00019726,2]
[330539167,1719561087856,-3311.36,0.00019726,2]
[330539168,1719561087865,-1914.45,0.00019726,2]
[330539169,1719561087875,-1322.58,0.00019726,2]
[330539170,1719561087886,-500.0,0.00019726,2]
[330539171,1719561087895,-500.0,0.00019726,2]
[330539172,1719561087904,-500.0,0.00019726,2]
[330539173,1719561087915,-783.88,0.00019726,2]
[330539174,1719561087925,-500.0,0.00019726,2]
[330539175,1719561087934,-500.0,0.00019726,2]
[330539176,1719561087944,-500.0,0.00019726,2]
[330539177,1719561087953,-612.16,0.00019726,2]
[330539178,1719561087963,-3498.8,0.00019726,2]
[330539179,1719561087972,-500.0,0.00019726,2]
[330539180,1719561087982,-1962.72,0.00019726,2]
[330539181,1719561087995,-500.0,0.00019726,2]
[330539182,1719561088005,-500.0,0.00019726,2]
[330539183,1719561088016,-500.0,0.00019726,2]
[330539184,1719561088025,-1641.9,0.00019726,2]
[330539185,1719561088036,-266.26619657,0.00019726,2]
[330539186,1719561088045,-500.0,0.00019726,2]
[330539187,1719561088055,-500.0,0.00019726,2]
[330539188,1719561088064,-685.98,0.00019726,2]
[330539189,1719561088074,-637.51,0.00019726,2]
[330539190,1719561088083,-3117.56,0.00019726,2]
[330539191,1719561088093,-1141.3,0.00019726,2]
[330539192,1719561088102,-3602.08,0.00019726,2]
[330539193,1719561088113,-470.32638904,0.00019726,2]
[330539194,1719561088124,-500.0,0.00019726,2]
[330539195,1719561088134,-3867.01,0.00019726,2]
[330539196,1719561088145,-8127.46,0.00019726,2]
[330539197,1719561088155,-4395.4,0.00019726,2]
[330539198,1719561088163,-3970.07,0.00019726,2]
[330539199,1719561088173,-500.0,0.00019726,2]
[330539200,1719561088183,-1264.09,0.00019726,2]
[330539201,1719561088193,-500.0,0.00019726,2]
[330539202,1719561088202,-2447.28,0.00019726,2]
[330539203,1719561088213,-500.0,0.00019726,2]
[330539204,1719561088222,-500.0,0.00019726,2]
[330539205,1719561088231,-764.6,0.00019726,2]
[330539206,1719561088241,-500.0,0.00019726,2]
[330539207,1719561088250,-2955.61,0.00019726,2]
[330539208,1719561088259,-1319.29,0.00019726,2]
[330539209,1719561088270,-500.0,0.00019726,2]
[330539210,1719561088279,-2004.62,0.00019726,2]
[330539211,1719561088288,-2128.6,0.00019726,2]
[330539212,1719561088297,-964.57,0.00019726,2]
[330539213,1719561088307,-543.13,0.00019726,2]
[330539214,1719561088317,-500.0,0.00019726,2]
[330539215,1719561088327,-500.0,0.00019726,2]
[330539216,1719561088336,-5636.27,0.00019726,2]
[330539217,1719561088345,-4918.69,0.00019726,2]
[330539218,1719561088354,-4066.1,0.00019726,2]
[330539219,1719561088364,-664.5,0.00019726,2]
[330539220,1719561088373,-500.0,0.00019726,2]
[330539221,1719561088382,-4196.26,0.00019726,2]
[330539222,1719561088392,-2426.91,0.00019726,2]
[330539223,1719561088401,-207.95887881,0.00019726,2]
[330539224,1719561088410,-500.0,0.00019726,2]
[330539225,1719561088420,-571.57,0.00019726,2]
[330539226,1719561088430,-500.0,0.00019726,2]
[330539227,1719561088440,-500.0,0.00019726,2]
[330539228,1719561088449,-1310.02,0.00019726,2]
[330539229,1719561088459,-619.41,0.00019726,2]
[330539230,1719561088468,-1996.62,0.00019726,2]